[Event "December 5 Early 2023"]
[Site "https://www.chess.com"]
[Date "2023.12.05"]
[Round "1"]
[White "Aydin, Gulenay"]
[Black "Cagara, Paulina"]
[Result "1-0"]
[Board "211"]
[TimeControl "180+1"]
[WhiteFideId "34557431"]
[BlackFideId "1124870"]
[WhiteElo "2563"]
[BlackElo "2203"]
[WhiteTeam "TUR"]
[BlackTeam "POL"]
[WhiteClock "0:00:15"]
[BlackClock "0:00:02"]

1. e4 {[%clk 0:03:00]}  c6 {[%clk 0:02:58]} 2. Nf3 {[%clk 0:02:55]}  d5 {[%clk 0:02:58]} 3. d3 {[%clk 0:02:55]}  Bg4 {[%clk 0:02:56]} 4. h3 {[%clk 0:02:51]}  Bh5 {[%clk 0:02:55]} 5. Bd2 {[%clk 0:02:47]}  e6 {[%clk 0:02:55]} 6. g4 {[%clk 0:02:44]}  Bg6 {[%clk 0:02:50]} 7. h4 {[%clk 0:02:44]}  h5 {[%clk 0:02:48]} 8. Ne5 {[%clk 0:02:36]}  Ne7 {[%clk 0:02:44]} 9. Nxg6 {[%clk 0:02:21]}  Nxg6 {[%clk 0:02:43]} 10. gxh5 {[%clk 0:02:22]}  Nxh4 {[%clk 0:02:38]} 11. Qg4 {[%clk 0:02:21]}  Be7 {[%clk 0:02:31]} 12. Nc3 {[%clk 0:01:38]}  Nd7 {[%clk 0:02:20]} 13. Be2 {[%clk 0:01:28]}  Ne5 {[%clk 0:02:12]} 14. Qxg7 {[%clk 0:01:23]}  Bf6 {[%clk 0:02:10]} 15. Qg3 {[%clk 0:01:21]}  Kd7 {[%clk 0:02:02]} 16. O-O-O {[%clk 0:01:16]}  Rg8 {[%clk 0:02:00]} 17. Qh3 {[%clk 0:01:12]}  Kc7 {[%clk 0:01:49]} 18. Bf4 {[%clk 0:01:06]}  Ng2 {[%clk 0:01:39]} 19. Bg3 {[%clk 0:00:54]}  Bg5+ {[%clk 0:01:20]} 20. Kb1 {[%clk 0:00:55]}  Nf4 {[%clk 0:01:20]} 21. Qh2 {[%clk 0:00:55]}  Qf6 {[%clk 0:01:12]} 22. d4 {[%clk 0:00:43]}  Nc4 {[%clk 0:01:01]} 23. Bxc4 {[%clk 0:00:43]}  dxc4 {[%clk 0:01:01]} 24. Ne2 {[%clk 0:00:43]}  Rad8 {[%clk 0:00:37]} 25. Nxf4 {[%clk 0:00:41]}  Kc8 {[%clk 0:00:37]} 26. Ne2 {[%clk 0:00:37]}  Qf3 {[%clk 0:00:30]} 27. Nc3 {[%clk 0:00:35]}  b5 {[%clk 0:00:27]} 28. Rhe1 {[%clk 0:00:25]}  b4 {[%clk 0:00:26]} 29. Na4 {[%clk 0:00:25]}  b3 {[%clk 0:00:22]} 30. axb3 {[%clk 0:00:22]}  cxb3 {[%clk 0:00:22]} 31. Qh1 {[%clk 0:00:21]}  bxc2+ {[%clk 0:00:21]} 32. Kxc2 {[%clk 0:00:22]}  Qf6 {[%clk 0:00:13]} 33. Qf1 {[%clk 0:00:17]}  Rxd4 {[%clk 0:00:12]} 34. Qa6+ {[%clk 0:00:15]}  Kd8 {[%clk 0:00:10]} 35. Rxd4+ {[%clk 0:00:15]}  Qxd4 {[%clk 0:00:02]} 36. Rd1 {[%clk 0:00:15]} 1-0

[Event "December 5 Early 2023"]
[Site "https://www.chess.com"]
[Date "2023.12.05"]
[Round "1"]
[White "Golubenko, Valentina"]
[Black "Stankovic, Boris"]
[Result "0-1"]
[Board "212"]
[TimeControl "180+1"]
[WhiteFideId "4501993"]
[BlackFideId "985317"]
[WhiteElo "2196"]
[BlackElo "2563"]
[WhiteTeam "CRO"]
[BlackTeam "SRB"]
[WhiteClock "0:00:12"]
[BlackClock "0:00:05"]

1. e4 {[%clk 0:02:38]}  c5 {[%clk 0:02:57]} 2. Nf3 {[%clk 0:02:35]}  g6 {[%clk 0:02:55]} 3. Bc4 {[%clk 0:02:34]}  Bg7 {[%clk 0:02:53]} 4. c3 {[%clk 0:02:31]}  e6 {[%clk 0:02:46]} 5. d4 {[%clk 0:02:28]}  cxd4 {[%clk 0:02:45]} 6. cxd4 {[%clk 0:02:28]}  Ne7 {[%clk 0:02:46]} 7. O-O {[%clk 0:02:27]}  O-O {[%clk 0:02:44]} 8. Nc3 {[%clk 0:02:27]}  b6 {[%clk 0:02:43]} 9. Bf4 {[%clk 0:02:22]}  Bb7 {[%clk 0:02:41]} 10. Re1 {[%clk 0:02:08]}  d5 {[%clk 0:02:38]} 11. Bb3 {[%clk 0:02:03]}  dxe4 {[%clk 0:02:32]} 12. Nxe4 {[%clk 0:02:02]}  Nf5 {[%clk 0:02:30]} 13. Be5 {[%clk 0:01:44]}  Bd5 {[%clk 0:02:01]} 14. Rc1 {[%clk 0:01:28]}  Nc6 {[%clk 0:01:53]} 15. Bxd5 {[%clk 0:01:21]}  Qxd5 {[%clk 0:01:54]} 16. Nf6+ {[%clk 0:01:10]}  Bxf6 {[%clk 0:01:49]} 17. Bxf6 {[%clk 0:01:11]}  Rac8 {[%clk 0:01:41]} 18. Qd2 {[%clk 0:01:07]}  h6 {[%clk 0:01:12]} 19. Rc3 {[%clk 0:00:35]}  Kh7 {[%clk 0:01:05]} 20. g4 {[%clk 0:00:27]}  Ng7 {[%clk 0:00:49]} 21. Ne5 {[%clk 0:00:18]}  Qxd4 {[%clk 0:00:22]} 22. Qc1 {[%clk 0:00:11]}  Nxe5 {[%clk 0:00:19]} 23. Bxe5 {[%clk 0:00:09]}  Qxg4+ {[%clk 0:00:19]} 24. Kh1 {[%clk 0:00:10]}  Rxc3 {[%clk 0:00:18]} 25. Qxc3 {[%clk 0:00:10]}  Nf5 {[%clk 0:00:16]} 26. Bf6 {[%clk 0:00:10]}  Nh4 {[%clk 0:00:08]} 27. h3 {[%clk 0:00:10]}  Qf3+ {[%clk 0:00:08]} 28. Qxf3 {[%clk 0:00:09]}  Nxf3 {[%clk 0:00:08]} 29. Re3 {[%clk 0:00:08]}  Ng5 {[%clk 0:00:07]} 30. Rd3 {[%clk 0:00:09]}  Ne4 {[%clk 0:00:06]} 31. Be5 {[%clk 0:00:08]}  Nc5 {[%clk 0:00:05]} 32. Rd6 {[%clk 0:00:06]}  f6 {[%clk 0:00:04]} 33. Bg3 {[%clk 0:00:06]}  e5 {[%clk 0:00:04]} 34. Rc6 {[%clk 0:00:06]}  Rf7 {[%clk 0:00:04]} 35. Rc8 {[%clk 0:00:06]}  Kg7 {[%clk 0:00:04]} 36. f4 {[%clk 0:00:06]}  Ne4 {[%clk 0:00:04]} 37. Bh2 {[%clk 0:00:06]}  exf4 {[%clk 0:00:04]} 38. Bxf4 {[%clk 0:00:06]}  g5 {[%clk 0:00:05]} 39. Be3 {[%clk 0:00:06]}  Kg6 {[%clk 0:00:05]} 40. Kg2 {[%clk 0:00:07]}  Kf5 {[%clk 0:00:06]} 41. Kf3 {[%clk 0:00:08]}  Nd6 {[%clk 0:00:05]} 42. Rd8 {[%clk 0:00:08]}  Ke6 {[%clk 0:00:05]} 43. Rb8 {[%clk 0:00:07]}  Nc4 {[%clk 0:00:05]} 44. Rh8 {[%clk 0:00:08]}  Nxe3 {[%clk 0:00:04]} 45. Kxe3 {[%clk 0:00:09]}  Kf5 {[%clk 0:00:04]} 46. Rxh6 {[%clk 0:00:09]}  Rc7 {[%clk 0:00:04]} 47. h4 {[%clk 0:00:10]}  g4 {[%clk 0:00:03]} 48. Kd4 {[%clk 0:00:11]}  Rd7+ {[%clk 0:00:04]} 49. Ke3 {[%clk 0:00:11]}  Rg7 {[%clk 0:00:04]} 50. Kf2 {[%clk 0:00:12]}  g3+ {[%clk 0:00:04]} 51. Kg2 {[%clk 0:00:13]}  Ke5 {[%clk 0:00:05]} 52. Rh5+ {[%clk 0:00:13]}  f5 {[%clk 0:00:05]} 53. Rh6 {[%clk 0:00:14]}  Ke4 {[%clk 0:00:05]} 54. Rh8 {[%clk 0:00:15]}  f4 {[%clk 0:00:06]} 55. Re8+ {[%clk 0:00:16]}  Kf5 {[%clk 0:00:06]} 56. Rf8+ {[%clk 0:00:16]}  Kg4 {[%clk 0:00:06]} 57. Rg8 {[%clk 0:00:16]}  Rxg8 {[%clk 0:00:06]} 58. h5 {[%clk 0:00:16]}  f3+ {[%clk 0:00:04]} 59. Kg1 {[%clk 0:00:12]}  Rc8 {[%clk 0:00:05]} 0-1

[Event "December 5 Early 2023"]
[Site "https://www.chess.com"]
[Date "2023.12.05"]
[Round "1"]
[White "Jeet, Jain"]
[Black "Osmonbekov, Talaibek"]
[Result "1-0"]
[Board "213"]
[TimeControl "180+1"]
[WhiteFideId "5073022"]
[BlackFideId "2017253"]
[WhiteElo "2563"]
[BlackElo "2192"]
[WhiteTeam "IND"]
[BlackTeam "USA"]
[WhiteClock "0:01:53"]
[BlackClock "0:00:00"]

1. Nf3 {[%clk 0:02:59]}  e6 {[%clk 0:02:58]} 2. g3 {[%clk 0:03:00]}  f5 {[%clk 0:02:58]} 3. Bg2 {[%clk 0:03:01]}  Nf6 {[%clk 0:02:58]} 4. O-O {[%clk 0:03:02]}  Be7 {[%clk 0:02:58]} 5. d3 {[%clk 0:03:03]}  d6 {[%clk 0:02:58]} 6. Nbd2 {[%clk 0:03:04]}  e5 {[%clk 0:02:58]} 7. e4 {[%clk 0:03:04]}  O-O {[%clk 0:02:58]} 8. h3 {[%clk 0:03:03]}  Nc6 {[%clk 0:02:55]} 9. c3 {[%clk 0:03:03]}  Qe8 {[%clk 0:02:49]} 10. Re1 {[%clk 0:03:03]}  Qh5 {[%clk 0:02:46]} 11. Nh4 {[%clk 0:02:57]}  Qxd1 {[%clk 0:02:42]} 12. Rxd1 {[%clk 0:02:58]}  g6 {[%clk 0:02:23]} 13. Nhf3 {[%clk 0:02:53]}  fxe4 {[%clk 0:02:12]} 14. dxe4 {[%clk 0:02:53]}  Nh5 {[%clk 0:02:10]} 15. Kh2 {[%clk 0:02:50]}  Be6 {[%clk 0:02:10]} 16. Nf1 {[%clk 0:02:44]}  Rf7 {[%clk 0:02:07]} 17. Be3 {[%clk 0:02:36]}  Raf8 {[%clk 0:02:07]} 18. N3d2 {[%clk 0:02:35]}  Kg7 {[%clk 0:01:34]} 19. Nb3 {[%clk 0:02:35]}  a5 {[%clk 0:01:28]} 20. Nc1 {[%clk 0:02:29]}  b6 {[%clk 0:00:57]} 21. Nd2 {[%clk 0:02:29]}  a4 {[%clk 0:00:52]} 22. Nd3 {[%clk 0:02:28]}  h6 {[%clk 0:00:40]} 23. f4 {[%clk 0:02:27]}  exf4 {[%clk 0:00:34]} 24. gxf4 {[%clk 0:02:28]}  a3 {[%clk 0:00:34]} 25. b3 {[%clk 0:02:26]}  Bh4 {[%clk 0:00:34]} 26. Nf1 {[%clk 0:02:20]}  Na5 {[%clk 0:00:22]} 27. Bf3 {[%clk 0:02:14]}  Nf6 {[%clk 0:00:15]} 28. c4 {[%clk 0:02:03]}  Nh7 {[%clk 0:00:15]} 29. Bg4 {[%clk 0:02:00]}  Bxg4 {[%clk 0:00:11]} 30. hxg4 {[%clk 0:02:01]}  Bf6 {[%clk 0:00:11]} 31. Rab1 {[%clk 0:02:00]}  Bc3 {[%clk 0:00:10]} 32. Rbc1 {[%clk 0:01:59]}  Bb2 {[%clk 0:00:09]} 33. Nxb2 {[%clk 0:01:57]}  axb2 {[%clk 0:00:08]} 34. Rb1 {[%clk 0:01:58]}  Nf6 {[%clk 0:00:07]} 35. Kh3 {[%clk 0:01:55]}  Nxe4 {[%clk 0:00:07]} 36. Rxb2 {[%clk 0:01:55]}  Nb7 {[%clk 0:00:06]} 37. Re2 {[%clk 0:01:53]}  Nbc5 {[%clk 0:00:06]} 38. b4 {[%clk 0:01:52]}  Nc3 {[%clk 0:00:06]} 39. Bd4+ {[%clk 0:01:52]}  Kh7 {[%clk 0:00:04]} 40. Bxc3 {[%clk 0:01:52]}  Na4 {[%clk 0:00:04]} 41. Bd2 {[%clk 0:01:52]}  h5 {[%clk 0:00:02]} 42. gxh5 {[%clk 0:01:52]}  gxh5 {[%clk 0:00:00]} 43. Rde1 {[%clk 0:01:53]} 1-0

[Event "December 5 Early 2023"]
[Site "https://www.chess.com"]
[Date "2023.12.05"]
[Round "1"]
[White "Malyi, Viacheslav"]
[Black "Onslow, Alfie"]
[Result "1-0"]
[Board "217"]
[TimeControl "180+1"]
[WhiteFideId "14123983"]
[BlackFideId "436976"]
[WhiteElo "2561"]
[BlackElo "2175"]
[WhiteTeam "UKR"]
[BlackTeam "ENG"]
[WhiteClock "0:00:13"]
[BlackClock "0:00:00"]

1. e4 {[%clk 0:03:00]}  c5 {[%clk 0:02:53]} 2. Nf3 {[%clk 0:03:00]}  Nc6 {[%clk 0:02:53]} 3. d4 {[%clk 0:03:00]}  cxd4 {[%clk 0:02:53]} 4. Nxd4 {[%clk 0:03:01]}  Qc7 {[%clk 0:02:52]} 5. Nc3 {[%clk 0:03:01]}  e6 {[%clk 0:02:53]} 6. Be2 {[%clk 0:03:02]}  a6 {[%clk 0:02:53]} 7. O-O {[%clk 0:03:02]}  Nf6 {[%clk 0:02:53]} 8. Be3 {[%clk 0:03:00]}  Bb4 {[%clk 0:02:52]} 9. Na4 {[%clk 0:02:59]}  Be7 {[%clk 0:02:53]} 10. Nxc6 {[%clk 0:02:57]}  bxc6 {[%clk 0:02:52]} 11. Nb6 {[%clk 0:02:58]}  Rb8 {[%clk 0:02:53]} 12. Nxc8 {[%clk 0:02:58]}  Qxc8 {[%clk 0:02:54]} 13. e5 {[%clk 0:02:57]}  Nd5 {[%clk 0:02:53]} 14. Bd4 {[%clk 0:02:56]}  c5 {[%clk 0:02:50]} 15. c4 {[%clk 0:02:43]}  Nf4 {[%clk 0:02:50]} 16. Bc3 {[%clk 0:02:41]}  Nxe2+ {[%clk 0:02:44]} 17. Qxe2 {[%clk 0:02:41]}  O-O {[%clk 0:02:34]} 18. Rad1 {[%clk 0:02:39]}  f5 {[%clk 0:02:23]} 19. Rd3 {[%clk 0:02:33]}  Qc6 {[%clk 0:02:19]} 20. Rfd1 {[%clk 0:02:31]}  Rb7 {[%clk 0:02:19]} 21. Qf3 {[%clk 0:02:30]}  Qc8 {[%clk 0:01:18]} 22. R1d2 {[%clk 0:02:22]}  Rf7 {[%clk 0:01:15]} 23. g3 {[%clk 0:02:19]}  Bg5 {[%clk 0:01:13]} 24. Rd1 {[%clk 0:02:19]}  Bh6 {[%clk 0:01:07]} 25. b3 {[%clk 0:02:13]}  g6 {[%clk 0:00:59]} 26. Rd6 {[%clk 0:02:12]}  Ra7 {[%clk 0:00:52]} 27. Ba5 {[%clk 0:02:01]}  Bf8 {[%clk 0:00:45]} 28. R6d3 {[%clk 0:01:59]}  Qb7 {[%clk 0:00:41]} 29. Qxb7 {[%clk 0:01:57]}  Rxb7 {[%clk 0:00:42]} 30. f4 {[%clk 0:01:55]}  h6 {[%clk 0:00:33]} 31. Kf2 {[%clk 0:01:51]}  g5 {[%clk 0:00:32]} 32. Kf3 {[%clk 0:01:51]}  g4+ {[%clk 0:00:30]} 33. Kg2 {[%clk 0:01:46]}  h5 {[%clk 0:00:31]} 34. h4 {[%clk 0:01:47]}  gxh3+ {[%clk 0:00:21]} 35. Kxh3 {[%clk 0:01:48]}  Kh7 {[%clk 0:00:22]} 36. Kg2 {[%clk 0:01:48]}  Kg6 {[%clk 0:00:19]} 37. Kf3 {[%clk 0:01:48]}  Rh7 {[%clk 0:00:15]} 38. Rh1 {[%clk 0:01:48]}  Be7 {[%clk 0:00:14]} 39. Be1 {[%clk 0:01:46]}  Bd8 {[%clk 0:00:13]} 40. Bf2 {[%clk 0:01:45]}  Be7 {[%clk 0:00:13]} 41. Rhd1 {[%clk 0:01:45]}  Bf8 {[%clk 0:00:13]} 42. R1d2 {[%clk 0:01:42]}  a5 {[%clk 0:00:13]} 43. Rd1 {[%clk 0:01:40]}  Ra7 {[%clk 0:00:12]} 44. a4 {[%clk 0:01:37]}  Rb7 {[%clk 0:00:11]} 45. Be1 {[%clk 0:01:38]}  Ra7 {[%clk 0:00:12]} 46. Bd2 {[%clk 0:01:17]}  Rf7 {[%clk 0:00:12]} 47. Be3 {[%clk 0:01:17]}  Rh7 {[%clk 0:00:11]} 48. Bf2 {[%clk 0:01:02]}  Rf7 {[%clk 0:00:11]} 49. Rh1 {[%clk 0:01:02]}  Rh7 {[%clk 0:00:11]} 50. Rh2 {[%clk 0:01:03]}  Be7 {[%clk 0:00:10]} 51. Be1 {[%clk 0:01:02]}  Bf8 {[%clk 0:00:09]} 52. Rhd2 {[%clk 0:01:02]}  Rf7 {[%clk 0:00:08]} 53. Kg2 {[%clk 0:01:02]}  Rh7 {[%clk 0:00:09]} 54. Kh3 {[%clk 0:01:02]}  Rf7 {[%clk 0:00:09]} 55. Rd1 {[%clk 0:01:02]}  Rh7 {[%clk 0:00:09]} 56. Bc3 {[%clk 0:00:54]}  Rf7 {[%clk 0:00:09]} 57. Bb2 {[%clk 0:00:55]}  Rh7 {[%clk 0:00:09]} 58. Ba3 {[%clk 0:00:55]}  Rf7 {[%clk 0:00:09]} 59. Kg2 {[%clk 0:00:54]}  Rh7 {[%clk 0:00:09]} 60. Kf3 {[%clk 0:00:55]}  Rg7 {[%clk 0:00:08]} 61. Rh1 {[%clk 0:00:56]}  Rh7 {[%clk 0:00:08]} 62. Bc1 {[%clk 0:00:48]}  Rb7 {[%clk 0:00:08]} 63. Bd2 {[%clk 0:00:48]}  Ra7 {[%clk 0:00:09]} 64. Be1 {[%clk 0:00:48]}  Rf7 {[%clk 0:00:08]} 65. Rd2 {[%clk 0:00:48]}  Rh7 {[%clk 0:00:08]} 66. Rdh2 {[%clk 0:00:49]}  Be7 {[%clk 0:00:06]} 67. Bc3 {[%clk 0:00:44]}  Bf8 {[%clk 0:00:06]} 68. Rb2 {[%clk 0:00:43]}  Be7 {[%clk 0:00:06]} 69. Rbb1 {[%clk 0:00:43]}  Bf8 {[%clk 0:00:06]} 70. Rhd1 {[%clk 0:00:43]}  Be7 {[%clk 0:00:06]} 71. Rd3 {[%clk 0:00:42]}  h4 {[%clk 0:00:06]} 72. g4 {[%clk 0:00:41]}  fxg4+ {[%clk 0:00:05]} 73. Kxg4 {[%clk 0:00:42]}  Rg7 {[%clk 0:00:05]} 74. Rh1 {[%clk 0:00:38]}  Kh6+ {[%clk 0:00:05]} 75. Kh3 {[%clk 0:00:35]}  Kh5 {[%clk 0:00:06]} 76. Bd2 {[%clk 0:00:31]}  Bf8 {[%clk 0:00:05]} 77. Rf1 {[%clk 0:00:30]}  d6 {[%clk 0:00:02]} 78. exd6 {[%clk 0:00:28]}  Rad7 {[%clk 0:00:02]} 79. f5 {[%clk 0:00:28]}  Rxd6 {[%clk 0:00:03]} 80. Rff3 {[%clk 0:00:18]}  Rxd3 {[%clk 0:00:03]} 81. Rxd3 {[%clk 0:00:19]}  exf5 {[%clk 0:00:03]} 82. Bxa5 {[%clk 0:00:19]}  Re7 {[%clk 0:00:02]} 83. Bd2 {[%clk 0:00:16]}  Bg7 {[%clk 0:00:02]} 84. a5 {[%clk 0:00:16]}  Bd4 {[%clk 0:00:02]} 85. b4 {[%clk 0:00:15]}  Ra7 {[%clk 0:00:02]} 86. b5 {[%clk 0:00:14]}  Rg7 {[%clk 0:00:01]} 87. a6 {[%clk 0:00:14]}  Rg6 {[%clk 0:00:01]} 88. a7 {[%clk 0:00:13]}  Rg8 {[%clk 0:00:00]} 89. b6 {[%clk 0:00:13]} 1-0

[Event "December 5 Early 2023"]
[Site "https://www.chess.com"]
[Date "2023.12.05"]
[Round "1"]
[White "Durucay, Uygar"]
[Black "pauliukevicius"]
[Result "1-0"]
[Board "221"]
[TimeControl "180+1"]
[WhiteFideId "44591560"]
[WhiteElo "2556"]
[BlackElo "2157"]
[WhiteTeam "TUR"]
[WhiteClock "0:01:49"]
[BlackClock "0:00:14"]

1. d4 {[%clk 0:03:00]}  Nf6 {[%clk 0:02:59]} 2. Nf3 {[%clk 0:03:00]}  e6 {[%clk 0:02:59]} 3. Bg5 {[%clk 0:02:59]}  d5 {[%clk 0:02:59]} 4. Nbd2 {[%clk 0:02:59]}  c5 {[%clk 0:02:56]} 5. e3 {[%clk 0:02:59]}  Nc6 {[%clk 0:02:55]} 6. c3 {[%clk 0:02:58]}  h6 {[%clk 0:02:35]} 7. Bh4 {[%clk 0:02:57]}  Bd6 {[%clk 0:02:28]} 8. Bd3 {[%clk 0:02:52]}  O-O {[%clk 0:02:12]} 9. O-O {[%clk 0:02:40]}  Ne7 {[%clk 0:01:13]} 10. e4 {[%clk 0:02:27]}  dxe4 {[%clk 0:00:55]} 11. Nxe4 {[%clk 0:02:20]}  Nxe4 {[%clk 0:00:48]} 12. Bxe4 {[%clk 0:02:21]}  cxd4 {[%clk 0:00:48]} 13. Qxd4 {[%clk 0:02:19]}  Qc7 {[%clk 0:00:45]} 14. Rad1 {[%clk 0:02:16]}  Bf4 {[%clk 0:00:37]} 15. Bb1 {[%clk 0:02:10]}  Ng6 {[%clk 0:00:35]} 16. Bxg6 {[%clk 0:02:07]}  fxg6 {[%clk 0:00:36]} 17. Rfe1 {[%clk 0:02:04]}  g5 {[%clk 0:00:37]} 18. Bg3 {[%clk 0:02:03]}  Bxg3 {[%clk 0:00:37]} 19. hxg3 {[%clk 0:02:04]}  b6 {[%clk 0:00:35]} 20. Qe4 {[%clk 0:02:00]}  Bb7 {[%clk 0:00:35]} 21. Qxe6+ {[%clk 0:02:00]}  Kh8 {[%clk 0:00:35]} 22. Ne5 {[%clk 0:02:00]}  Kh7 {[%clk 0:00:31]} 23. Rd7 {[%clk 0:01:57]}  Rf6 {[%clk 0:00:30]} 24. Qxf6 {[%clk 0:01:51]}  Qc6 {[%clk 0:00:14]} 25. Qxg7# {[%clk 0:01:49]} 1-0

[Event "December 5 Early 2023"]
[Site "https://www.chess.com"]
[Date "2023.12.05"]
[Round "1"]
[White "Osiecki, Stanislaw"]
[Black "Waldhausen Gordon, Frederick"]
[Result "0-1"]
[Board "224"]
[TimeControl "180+1"]
[WhiteFideId "1102990"]
[BlackFideId "2409143"]
[WhiteElo "2136"]
[BlackElo "2554"]
[WhiteTeam "POL"]
[BlackTeam "SCO"]
[WhiteClock "0:00:00"]
[BlackClock "0:00:43"]

1. e4 {[%clk 0:02:50]}  c5 {[%clk 0:02:59]} 2. c3 {[%clk 0:02:49]}  Nf6 {[%clk 0:02:59]} 3. e5 {[%clk 0:02:48]}  Nd5 {[%clk 0:02:59]} 4. d4 {[%clk 0:02:47]}  cxd4 {[%clk 0:02:59]} 5. Nf3 {[%clk 0:02:46]}  Nc6 {[%clk 0:02:59]} 6. cxd4 {[%clk 0:02:44]}  d6 {[%clk 0:02:59]} 7. Bc4 {[%clk 0:02:42]}  Nb6 {[%clk 0:02:58]} 8. Bb5 {[%clk 0:02:42]}  Bd7 {[%clk 0:02:58]} 9. Nc3 {[%clk 0:02:35]}  e6 {[%clk 0:02:57]} 10. O-O {[%clk 0:02:33]}  Be7 {[%clk 0:02:56]} 11. Bf4 {[%clk 0:02:32]}  d5 {[%clk 0:02:54]} 12. Bd3 {[%clk 0:02:30]}  Nb4 {[%clk 0:02:48]} 13. Bb1 {[%clk 0:02:24]}  g5 {[%clk 0:02:42]} 14. Bg3 {[%clk 0:02:18]}  h5 {[%clk 0:02:40]} 15. h3 {[%clk 0:02:17]}  h4 {[%clk 0:02:36]} 16. Bh2 {[%clk 0:02:13]}  Nc4 {[%clk 0:02:33]} 17. a3 {[%clk 0:02:00]}  Qa5 {[%clk 0:02:18]} 18. b3 {[%clk 0:01:48]}  Nxa3 {[%clk 0:02:08]} 19. Qc1 {[%clk 0:01:42]}  Na6 {[%clk 0:02:03]} 20. Bd3 {[%clk 0:01:31]}  Rc8 {[%clk 0:02:01]} 21. Qb2 {[%clk 0:01:29]}  Qxc3 {[%clk 0:01:58]} 22. Qxc3 {[%clk 0:01:27]}  Rxc3 {[%clk 0:01:58]} 23. Ne1 {[%clk 0:01:23]}  Rxb3 {[%clk 0:01:53]} 24. Bxa6 {[%clk 0:01:19]}  bxa6 {[%clk 0:01:52]} 25. Nf3 {[%clk 0:01:08]}  Nc4 {[%clk 0:01:49]} 26. Rxa6 {[%clk 0:01:05]}  Rb7 {[%clk 0:01:45]} 27. Rfa1 {[%clk 0:01:03]}  O-O {[%clk 0:01:44]} 28. Rxa7 {[%clk 0:01:03]}  Rfb8 {[%clk 0:01:43]} 29. Rxb7 {[%clk 0:01:02]}  Rxb7 {[%clk 0:01:43]} 30. g3 {[%clk 0:00:57]}  Na3 {[%clk 0:01:34]} 31. gxh4 {[%clk 0:00:54]}  gxh4 {[%clk 0:01:33]} 32. Ra2 {[%clk 0:00:54]}  Nc4 {[%clk 0:01:25]} 33. Bf4 {[%clk 0:00:47]}  Kg7 {[%clk 0:01:25]} 34. Kg2 {[%clk 0:00:41]}  Kg6 {[%clk 0:01:21]} 35. Ne1 {[%clk 0:00:30]}  Bb5 {[%clk 0:01:10]} 36. Nd3 {[%clk 0:00:24]}  Ne3+ {[%clk 0:01:09]} 37. Bxe3 {[%clk 0:00:23]}  Bxd3 {[%clk 0:01:09]} 38. Rd2 {[%clk 0:00:22]}  Bc4 {[%clk 0:01:05]} 39. Kf3 {[%clk 0:00:15]}  Kf5 {[%clk 0:01:02]} 40. Rd1 {[%clk 0:00:14]}  Bg5 {[%clk 0:01:01]} 41. Rg1 {[%clk 0:00:13]}  Bxe3 {[%clk 0:00:53]} 42. fxe3 {[%clk 0:00:13]}  Bd3 {[%clk 0:00:52]} 43. Rg4 {[%clk 0:00:00]}  Rb2 {[%clk 0:00:43]} 0-1

[Event "December 5 Early 2023"]
[Site "https://www.chess.com"]
[Date "2023.12.05"]
[Round "1"]
[White "Jesusesmifuerza"]
[Black "Mortazavi, Ali"]
[Result "0-1"]
[Board "226"]
[TimeControl "180+1"]
[BlackFideId "401323"]
[WhiteElo "2134"]
[BlackElo "2553"]
[BlackTeam "ENG"]
[WhiteClock "0:01:19"]
[BlackClock "0:01:47"]

1. d4 {[%clk 0:03:00]}  Nf6 {[%clk 0:02:58]} 2. Nf3 {[%clk 0:03:00]}  g6 {[%clk 0:02:57]} 3. Bf4 {[%clk 0:02:59]}  Bg7 {[%clk 0:02:57]} 4. h3 {[%clk 0:02:59]}  O-O {[%clk 0:02:58]} 5. e3 {[%clk 0:02:59]}  d6 {[%clk 0:02:59]} 6. Bd3 {[%clk 0:02:57]}  c5 {[%clk 0:02:59]} 7. c3 {[%clk 0:02:57]}  Be6 {[%clk 0:02:59]} 8. O-O {[%clk 0:02:57]}  Qb6 {[%clk 0:03:00]} 9. Qc2 {[%clk 0:02:54]}  Nc6 {[%clk 0:02:59]} 10. Nbd2 {[%clk 0:02:50]}  cxd4 {[%clk 0:03:00]} 11. exd4 {[%clk 0:02:50]}  Rac8 {[%clk 0:03:00]} 12. Rab1 {[%clk 0:02:46]}  Nb4 {[%clk 0:02:59]} 13. cxb4 {[%clk 0:02:26]}  Rxc2 {[%clk 0:02:57]} 14. Bxc2 {[%clk 0:02:27]}  Qxb4 {[%clk 0:02:44]} 15. Bb3 {[%clk 0:02:24]}  Bxb3 {[%clk 0:02:43]} 16. Nxb3 {[%clk 0:02:25]}  Nd5 {[%clk 0:02:40]} 17. Bg3 {[%clk 0:02:23]}  Rc8 {[%clk 0:02:34]} 18. Rbc1 {[%clk 0:02:23]}  Rxc1 {[%clk 0:02:28]} 19. Rxc1 {[%clk 0:02:24]}  Bf6 {[%clk 0:02:28]} 20. Rc8+ {[%clk 0:02:17]}  Kg7 {[%clk 0:02:28]} 21. Nfd2 {[%clk 0:02:06]}  h5 {[%clk 0:02:17]} 22. Ne4 {[%clk 0:02:05]}  Qa4 {[%clk 0:02:12]} 23. Nxf6 {[%clk 0:02:04]}  Nxf6 {[%clk 0:02:10]} 24. Rc7 {[%clk 0:01:55]}  Qxa2 {[%clk 0:02:10]} 25. Rxb7 {[%clk 0:01:55]}  Nd5 {[%clk 0:02:06]} 26. Nd2 {[%clk 0:01:49]}  Qa6 {[%clk 0:01:58]} 27. Rd7 {[%clk 0:01:36]}  Qa1+ {[%clk 0:01:57]} 28. Kh2 {[%clk 0:01:36]}  Qxb2 {[%clk 0:01:58]} 29. Nf3 {[%clk 0:01:32]}  a5 {[%clk 0:01:56]} 30. Bh4 {[%clk 0:01:32]}  a4 {[%clk 0:01:51]} 31. Bxe7 {[%clk 0:01:31]}  Nxe7 {[%clk 0:01:51]} 32. Rxe7 {[%clk 0:01:31]}  a3 {[%clk 0:01:51]} 33. Ng5 {[%clk 0:01:30]}  a2 {[%clk 0:01:50]} 34. Rxf7+ {[%clk 0:01:29]}  Kg8 {[%clk 0:01:49]} 35. Re7 {[%clk 0:01:23]}  a1=Q {[%clk 0:01:47]} 36. Re8+ {[%clk 0:01:24]}  Kg7 {[%clk 0:01:48]} 37. Re7+ {[%clk 0:01:24]}  Kf8 {[%clk 0:01:47]} 38. Rf7+ {[%clk 0:01:19]}  Ke8 {[%clk 0:01:47]} 0-1